[Event "Late-Titled-Tuesday-Blitz-March-26-2024"]
[Site "Chess.com"]
[Date "2024.03.26"]
[Round "2"]
[White "Iball95"]
[Black "Aram7Adam"]
[Result "1-0"]
[WhiteElo "2881"]
[BlackElo "2440"]
[TimeControl "180+1"]
[EndTime "14:17:44 PDT"]
[Termination "Iball95 won by resignation"]

1. e4 {[%clk 0:02:58.7]} 1... c5 {[%clk 0:03:00]} 2. Nf3 {[%clk 0:02:59]} 2...
Nc6 {[%clk 0:03:00.3]} 3. Nc3 {[%clk 0:02:59.5]} 3... d6 {[%clk 0:02:58.9]} 4.
Bb5 {[%clk 0:02:58.6]} 4... Bd7 {[%clk 0:02:59]} 5. Bxc6 {[%clk 0:02:59]} 5...
Bxc6 {[%clk 0:02:59.9]} 6. d4 {[%clk 0:02:59.4]} 6... cxd4 {[%clk 0:03:00.7]} 7.
Qxd4 {[%clk 0:03:00.3]} 7... Nf6 {[%clk 0:03:00.5]} 8. Bg5 {[%clk 0:03:00.6]}
8... e6 {[%clk 0:02:58.9]} 9. O-O-O {[%clk 0:03:00.3]} 9... Be7 {[%clk
0:02:58.9]} 10. Rhe1 {[%clk 0:03:01]} 10... Qc7 {[%clk 0:02:57]} 11. e5 {[%clk
0:02:58.1]} 11... dxe5 {[%clk 0:02:57]} 12. Nxe5 {[%clk 0:02:59]} 12... O-O
{[%clk 0:02:52.9]} 13. Qc4 {[%clk 0:02:59.2]} 13... Rac8 {[%clk 0:02:46.6]} 14.
Nxc6 {[%clk 0:02:58.7]} 14... Qxc6 {[%clk 0:02:46.1]} 15. Qxc6 {[%clk
0:02:59.1]} 15... Rxc6 {[%clk 0:02:46.9]} 16. Ne4 {[%clk 0:02:59.4]} 16... Rfc8
{[%clk 0:02:43.6]} 17. Re2 {[%clk 0:02:59.5]} 17... h6 {[%clk 0:02:20.7]} 18.
Nxf6+ {[%clk 0:02:59.2]} 18... Bxf6 {[%clk 0:02:19.5]} 19. Bxf6 {[%clk
0:02:59.6]} 19... gxf6 {[%clk 0:02:20.4]} 20. Rd3 {[%clk 0:02:56.4]} 20... f5
{[%clk 0:02:16.6]} 21. c3 {[%clk 0:02:55.6]} 21... Kg7 {[%clk 0:02:15.4]} 22.
Kc2 {[%clk 0:02:55.1]} 22... R8c7 {[%clk 0:02:14.8]} 23. Ree3 {[%clk 0:02:51.2]}
23... Rc8 {[%clk 0:02:07.8]} 24. Rd7 {[%clk 0:02:50.1]} 24... R6c7 {[%clk
0:02:07.6]} 25. Red3 {[%clk 0:02:49.8]} 25... Kf6 {[%clk 0:01:49.7]} 26. a4
{[%clk 0:02:49]} 26... b6 {[%clk 0:01:44.6]} 27. b4 {[%clk 0:02:32.8]} 27... h5
{[%clk 0:01:19.1]} 28. Kb3 {[%clk 0:02:31.3]} 28... h4 {[%clk 0:01:17.9]} 29.
Rxc7 {[%clk 0:02:14.6]} 29... Rxc7 {[%clk 0:01:17.9]} 30. c4 {[%clk 0:02:15.5]}
30... e5 {[%clk 0:01:16.5]} 31. Rd6+ {[%clk 0:02:11.5]} 31... Kg5 {[%clk
0:01:16.2]} 32. Rd5 {[%clk 0:02:12]} 32... f6 {[%clk 0:01:15.3]} 33. c5 {[%clk
0:02:12.6]} 33... f4 {[%clk 0:01:11.4]} 34. Kc4 {[%clk 0:02:08.1]} 34... h3
{[%clk 0:01:03.1]} 35. gxh3 {[%clk 0:02:09]} 35... Kh4 {[%clk 0:01:03.1]} 36.
Rd6 {[%clk 0:01:54.3]} 36... bxc5 {[%clk 0:01:03.1]} 37. bxc5 {[%clk 0:01:54.2]}
37... Kxh3 {[%clk 0:01:03]} 38. Rxf6 {[%clk 0:01:51.9]} 38... Kxh2 {[%clk
0:01:02.1]} 39. Kd5 {[%clk 0:01:49.9]} 39... Kg2 {[%clk 0:00:59.8]} 40. c6
{[%clk 0:01:49.7]} 40... Kxf2 {[%clk 0:00:56.6]} 41. Kxe5 {[%clk 0:01:49.5]}
41... f3 {[%clk 0:00:56.8]} 42. Kd6 {[%clk 0:01:49.8]} 42... Rc8 {[%clk
0:00:42.7]} 43. c7 {[%clk 0:01:49.5]} 43... Ke2 {[%clk 0:00:30.4]} 44. Kd7
{[%clk 0:01:48.5]} 44... Rh8 {[%clk 0:00:27.8]} 45. c8=Q {[%clk 0:01:47.2]}
45... Rxc8 {[%clk 0:00:28.7]} 46. Kxc8 {[%clk 0:01:47.5]} 46... f2 {[%clk
0:00:29.6]} 47. a5 {[%clk 0:01:48]} 47... f1=Q {[%clk 0:00:29.5]} 48. Rxf1
{[%clk 0:01:47.9]} 48... Kxf1 {[%clk 0:00:30.4]} 49. Kb7 {[%clk 0:01:48.1]}
49... Ke2 {[%clk 0:00:31.3]} 50. Kxa7 {[%clk 0:01:48.4]} 50... Kd3 {[%clk
0:00:32.2]} 51. Kb7 {[%clk 0:01:49]} 51... Kd4 {[%clk 0:00:33.1]} 52. a6 {[%clk
0:01:49.9]} 52... Kd5 {[%clk 0:00:34]} 53. a7 {[%clk 0:01:50.8]} 1-0

[Event "Late-Titled-Tuesday-Blitz-March-26-2024"]
[Site "Chess.com"]
[Date "2024.03.26"]
[Round "2"]
[White "baki83"]
[Black "elmusmolamas"]
[Result "1-0"]
[WhiteElo "2896"]
[BlackElo "2493"]
[TimeControl "180+1"]
[EndTime "14:17:47 PDT"]
[Termination "baki83 won by resignation"]

1. e4 {[%clk 0:03:00.9]} 1... c5 {[%clk 0:02:55.7]} 2. Nf3 {[%clk 0:03:00.8]}
2... e6 {[%clk 0:02:52.6]} 3. c3 {[%clk 0:03:00.6]} 3... Nf6 {[%clk 0:02:50.8]}
4. e5 {[%clk 0:03:01]} 4... Nd5 {[%clk 0:02:51.5]} 5. a3 {[%clk 0:03:01.6]} 5...
d6 {[%clk 0:02:45.6]} 6. d4 {[%clk 0:03:01.3]} 6... cxd4 {[%clk 0:02:39.4]} 7.
c4 {[%clk 0:03:00.9]} 7... Ne7 {[%clk 0:02:31.9]} 8. exd6 {[%clk 0:02:59.7]}
8... Nf5 {[%clk 0:02:32.2]} 9. c5 {[%clk 0:02:52.3]} 9... Nc6 {[%clk 0:02:24.1]}
10. b4 {[%clk 0:02:47.3]} 10... h6 {[%clk 0:02:07.9]} 11. Nbd2 {[%clk
0:02:21.4]} 11... g5 {[%clk 0:02:03.3]} 12. g4 {[%clk 0:02:19.5]} 12... Nxd6
{[%clk 0:01:13.5]} 13. cxd6 {[%clk 0:02:17.9]} 13... Bxd6 {[%clk 0:01:14.4]} 14.
Bg2 {[%clk 0:02:15.2]} 14... O-O {[%clk 0:01:13.4]} 15. Bb2 {[%clk 0:02:15]}
15... Bf4 {[%clk 0:01:11.8]} 16. O-O {[%clk 0:02:13.7]} 16... e5 {[%clk
0:01:10.9]} 17. h3 {[%clk 0:02:09.6]} 17... Qf6 {[%clk 0:01:03.3]} 18. Re1
{[%clk 0:02:04.7]} 18... Qh8 {[%clk 0:01:00.8]} 19. b5 {[%clk 0:02:03.6]} 19...
h5 {[%clk 0:00:37.5]} 20. bxc6 {[%clk 0:01:54.1]} 20... hxg4 {[%clk 0:00:38.4]}
21. cxb7 {[%clk 0:01:48.3]} 21... Bxb7 {[%clk 0:00:39.3]} 22. hxg4 {[%clk
0:01:48.4]} 22... Rab8 {[%clk 0:00:39.3]} 23. Rb1 {[%clk 0:01:41.7]} 23... Rfe8
{[%clk 0:00:38.4]} 24. Ne4 {[%clk 0:01:40]} 24... f6 {[%clk 0:00:28]} 25. Ba1
{[%clk 0:01:29.5]} 25... Kg7 {[%clk 0:00:27.7]} 26. Nd6 {[%clk 0:01:20.1]} 26...
Re7 {[%clk 0:00:16.1]} 27. Nf5+ {[%clk 0:01:19.1]} 27... Kf7 {[%clk 0:00:13.5]}
28. Nxe7 {[%clk 0:01:16.5]} 28... Kxe7 {[%clk 0:00:09.3]} 29. Bxd4 {[%clk
0:01:12.8]} 29... Bxf3 {[%clk 0:00:09.9]} 30. Bc5+ {[%clk 0:01:11.3]} 30... Kf7
{[%clk 0:00:08.5]} 31. Qxf3 {[%clk 0:01:08.3]} 31... Qh2+ {[%clk 0:00:07.5]} 32.
Kf1 {[%clk 0:01:08]} 32... Rxb1 {[%clk 0:00:05.2]} 33. Rxb1 {[%clk 0:01:07]} 1-0

[Event "Late-Titled-Tuesday-Blitz-March-26-2024"]
[Site "Chess.com"]
[Date "2024.03.26"]
[Round "2"]
[White "SereneSalmon"]
[Black "Kildepiotr"]
[Result "0-1"]
[WhiteElo "2370"]
[BlackElo "2729"]
[TimeControl "180+1"]
[EndTime "14:17:50 PDT"]
[Termination "Kildepiotr won by resignation"]

1. c4 {[%clk 0:03:00.9]} 1... g6 {[%clk 0:02:59.4]} 2. d4 {[%clk 0:03:00]} 2...
Bg7 {[%clk 0:02:59.9]} 3. e4 {[%clk 0:03:00.5]} 3... d6 {[%clk 0:02:59.1]} 4.
Nc3 {[%clk 0:03:00.8]} 4... Nc6 {[%clk 0:02:58.7]} 5. Nge2 {[%clk 0:03:00.3]}
5... e5 {[%clk 0:02:58.5]} 6. Be3 {[%clk 0:02:59.2]} 6... exd4 {[%clk
0:02:54.4]} 7. Nxd4 {[%clk 0:02:59.4]} 7... Nge7 {[%clk 0:02:54.8]} 8. Be2
{[%clk 0:02:57.2]} 8... O-O {[%clk 0:02:55]} 9. h4 {[%clk 0:02:49.4]} 9... f5
{[%clk 0:02:48.4]} 10. Nxc6 {[%clk 0:02:37]} 10... Nxc6 {[%clk 0:02:46.2]} 11.
Bg5 {[%clk 0:02:28.4]} 11... Qe8 {[%clk 0:02:37.2]} 12. Nd5 {[%clk 0:02:05.1]}
12... Qxe4 {[%clk 0:02:13.3]} 13. O-O {[%clk 0:01:59.3]} 13... Rf7 {[%clk
0:01:58.8]} 14. Re1 {[%clk 0:01:26]} 14... Qd4 {[%clk 0:01:58.2]} 15. Qxd4
{[%clk 0:01:17]} 15... Nxd4 {[%clk 0:01:59.1]} 16. Bd3 {[%clk 0:01:14.2]} 16...
Be6 {[%clk 0:01:58.1]} 17. Nf4 {[%clk 0:00:59.3]} 17... Bd7 {[%clk 0:01:57.9]}
18. Rad1 {[%clk 0:00:55.9]} 18... h6 {[%clk 0:01:48.6]} 19. Nxg6 {[%clk
0:00:55.2]} 19... hxg5 {[%clk 0:01:48.2]} 20. Ne7+ {[%clk 0:00:51.6]} 20... Kh8
{[%clk 0:01:37.9]} 21. hxg5 {[%clk 0:00:50.4]} 21... Re8 {[%clk 0:01:30.3]} 22.
Nd5 {[%clk 0:00:48.6]} 22... c6 {[%clk 0:01:21.3]} 23. Nf4 {[%clk 0:00:40.9]}
23... Be5 {[%clk 0:01:15.2]} 24. Nh5 {[%clk 0:00:19.2]} 24... Rh7 {[%clk
0:01:08.6]} 25. Nf6 {[%clk 0:00:15.6]} 25... Bxf6 {[%clk 0:01:08.5]} 26. gxf6
{[%clk 0:00:16.5]} 26... Re6 {[%clk 0:00:53.4]} 27. Rxe6 {[%clk 0:00:15.9]}
27... Bxe6 {[%clk 0:00:54.3]} 28. Bb1 {[%clk 0:00:10.6]} 28... c5 {[%clk
0:00:53.8]} 29. b3 {[%clk 0:00:11]} 29... Rf7 {[%clk 0:00:52.7]} 0-1

[Event "Late-Titled-Tuesday-Blitz-March-26-2024"]
[Site "Chess.com"]
[Date "2024.03.26"]
[Round "2"]
[White "CrushingKings"]
[Black "Rikikits"]
[Result "0-1"]
[WhiteElo "2564"]
[BlackElo "2846"]
[TimeControl "180+1"]
[EndTime "14:17:51 PDT"]
[Termination "Rikikits won on time"]

1. Nf3 {[%clk 0:02:58.7]} 1... d5 {[%clk 0:02:58.3]} 2. g3 {[%clk 0:02:57.8]}
2... c5 {[%clk 0:02:58.2]} 3. Bg2 {[%clk 0:02:57.1]} 3... Nc6 {[%clk 0:02:58.9]}
4. d4 {[%clk 0:02:56.7]} 4... Nf6 {[%clk 0:02:55.8]} 5. O-O {[%clk 0:02:55.9]}
5... e6 {[%clk 0:02:55.9]} 6. c4 {[%clk 0:02:56]} 6... dxc4 {[%clk 0:02:54.4]}
7. Qa4 {[%clk 0:02:55.2]} 7... Bd7 {[%clk 0:02:50.8]} 8. Qxc4 {[%clk 0:02:55.1]}
8... b5 {[%clk 0:02:50.8]} 9. Qc3 {[%clk 0:02:55]} 9... c4 {[%clk 0:02:37.2]}
10. a4 {[%clk 0:02:35.8]} 10... a6 {[%clk 0:02:32.8]} 11. Ne5 {[%clk 0:02:17]}
11... Nd5 {[%clk 0:02:13.5]} 12. Bxd5 {[%clk 0:02:15.4]} 12... exd5 {[%clk
0:02:14.4]} 13. Nxd7 {[%clk 0:02:15.2]} 13... Kxd7 {[%clk 0:02:14.1]} 14. axb5
{[%clk 0:02:14.6]} 14... axb5 {[%clk 0:02:15]} 15. Rxa8 {[%clk 0:02:12.3]} 15...
Qxa8 {[%clk 0:02:15.9]} 16. Qf3 {[%clk 0:02:12.3]} 16... Nxd4 {[%clk 0:02:03.3]}
17. Qxf7+ {[%clk 0:02:12.1]} 17... Kc6 {[%clk 0:02:01.9]} 18. Nc3 {[%clk
0:02:12]} 18... Bc5 {[%clk 0:01:50.9]} 19. Bf4 {[%clk 0:00:57.4]} 19... Qb7
{[%clk 0:01:40]} 20. Qxd5+ {[%clk 0:00:37.1]} 20... Kb6 {[%clk 0:01:40.1]} 21.
Qxb7+ {[%clk 0:00:15.9]} 21... Kxb7 {[%clk 0:01:41]} 22. e3 {[%clk 0:00:14.4]}
22... Ne6 {[%clk 0:01:41]} 23. Nxb5 {[%clk 0:00:13.9]} 23... Kc6 {[%clk
0:01:40.7]} 24. Nc3 {[%clk 0:00:13.9]} 24... Rd8 {[%clk 0:01:38.2]} 25. Rc1
{[%clk 0:00:13.5]} 25... Rd2 {[%clk 0:01:34.4]} 26. Ne4 {[%clk 0:00:13.6]} 26...
Rxb2 {[%clk 0:01:34.9]} 27. Rxc4 {[%clk 0:00:11.6]} 27... Kd5 {[%clk 0:01:35.1]}
28. Ra4 {[%clk 0:00:11]} 28... Bb4 {[%clk 0:01:33.5]} 29. Ng5 {[%clk 0:00:08.8]}
29... Nc5 {[%clk 0:01:30.8]} 30. Ra7 {[%clk 0:00:07.8]} 30... Nd3 {[%clk
0:01:29.4]} 31. Rd7+ {[%clk 0:00:05.1]} 31... Kc4 {[%clk 0:01:29.6]} 32. Ne4
{[%clk 0:00:05.2]} 32... Ne1 {[%clk 0:01:26.3]} 33. h4 {[%clk 0:00:02.6]} 33...
h6 {[%clk 0:01:23.9]} 34. Rd1 {[%clk 0:00:02.5]} 34... Kb3 {[%clk 0:01:14.3]}
35. Be5 {[%clk 0:00:02.1]} 35... Nf3+ {[%clk 0:01:13.9]} 0-1

[Event "Late-Titled-Tuesday-Blitz-March-26-2024"]
[Site "Chess.com"]
[Date "2024.03.26"]
[Round "2"]
[White "Stanbad1"]
[Black "GHANDEEVAM2003"]
[Result "0-1"]
[WhiteElo "2654"]
[BlackElo "3039"]
[TimeControl "180+1"]
[EndTime "14:17:53 PDT"]
[Termination "GHANDEEVAM2003 won on time"]

1. d4 {[%clk 0:03:00.9]} 1... c6 {[%clk 0:02:59.9]} 2. c4 {[%clk 0:02:59.7]}
2... g6 {[%clk 0:02:59.3]} 3. e4 {[%clk 0:02:59]} 3... Bg7 {[%clk 0:02:59.9]} 4.
Nc3 {[%clk 0:02:57.9]} 4... d6 {[%clk 0:02:59.6]} 5. Be3 {[%clk 0:02:56.6]} 5...
Nf6 {[%clk 0:02:58.8]} 6. h3 {[%clk 0:02:54.1]} 6... Nbd7 {[%clk 0:02:58.4]} 7.
Nf3 {[%clk 0:02:50.4]} 7... e5 {[%clk 0:02:57.8]} 8. d5 {[%clk 0:02:39.2]} 8...
Qe7 {[%clk 0:02:57.4]} 9. Qc2 {[%clk 0:02:35.5]} 9... O-O {[%clk 0:02:55.6]} 10.
Be2 {[%clk 0:02:34.5]} 10... Nc5 {[%clk 0:02:51.1]} 11. Nd2 {[%clk 0:02:28.3]}
11... a5 {[%clk 0:02:49.5]} 12. O-O {[%clk 0:02:25.4]} 12... Ne8 {[%clk
0:02:44]} 13. Rae1 {[%clk 0:02:00.3]} 13... f5 {[%clk 0:02:43.3]} 14. exf5
{[%clk 0:02:00]} 14... Bxf5 {[%clk 0:02:41.5]} 15. Nde4 {[%clk 0:01:51.9]} 15...
Nxe4 {[%clk 0:02:29.3]} 16. Nxe4 {[%clk 0:01:50.8]} 16... Nf6 {[%clk 0:02:30.2]}
17. Nxf6+ {[%clk 0:01:42.8]} 17... Qxf6 {[%clk 0:02:31.1]} 18. Bd3 {[%clk
0:01:38.3]} 18... cxd5 {[%clk 0:02:24.5]} 19. cxd5 {[%clk 0:01:32.7]} 19... Rac8
{[%clk 0:02:24.9]} 20. Qb1 {[%clk 0:01:30.9]} 20... Qf7 {[%clk 0:02:21.5]} 21.
Rd1 {[%clk 0:01:24.8]} 21... Rfe8 {[%clk 0:02:19]} 22. a3 {[%clk 0:01:07.5]}
22... h5 {[%clk 0:02:14.7]} 23. b4 {[%clk 0:01:05.7]} 23... a4 {[%clk
0:02:01.9]} 24. Be4 {[%clk 0:00:58.4]} 24... Rc4 {[%clk 0:02:00.8]} 25. Bxf5
{[%clk 0:00:55.2]} 25... gxf5 {[%clk 0:02:01.7]} 26. Rc1 {[%clk 0:00:54.5]}
26... Rec8 {[%clk 0:01:59.2]} 27. Rxc4 {[%clk 0:00:49.8]} 27... Rxc4 {[%clk
0:02:00.1]} 28. Rc1 {[%clk 0:00:49.4]} 28... Rxc1+ {[%clk 0:02:00]} 29. Qxc1
{[%clk 0:00:50.3]} 29... f4 {[%clk 0:02:00.3]} 30. Qc8+ {[%clk 0:00:42.9]} 30...
Bf8 {[%clk 0:02:00.2]} 31. Bb6 {[%clk 0:00:35.2]} 31... Qxd5 {[%clk 0:02:00.7]}
32. Bd8 {[%clk 0:00:27.8]} 32... Qf7 {[%clk 0:01:53.4]} 33. Bh4 {[%clk
0:00:22.7]} 33... Kh7 {[%clk 0:01:50.2]} 34. Qc2+ {[%clk 0:00:21.3]} 34... Kh6
{[%clk 0:01:42.3]} 35. Qxa4 {[%clk 0:00:20.7]} 35... e4 {[%clk 0:01:42]} 36. Qb5
{[%clk 0:00:19.1]} 36... d5 {[%clk 0:01:41]} 37. Qb6+ {[%clk 0:00:17.4]} 37...
Kh7 {[%clk 0:01:40.9]} 38. Qd8 {[%clk 0:00:11.8]} 38... Bg7 {[%clk 0:01:39.6]}
39. Qc8 {[%clk 0:00:10.5]} 39... d4 {[%clk 0:01:37.7]} 40. Qc2 {[%clk
0:00:09.7]} 40... Qg6 {[%clk 0:01:37.5]} 41. Qd1 {[%clk 0:00:07.6]} 41... f3
{[%clk 0:01:36.4]} 42. g3 {[%clk 0:00:07.1]} 42... Qf5 {[%clk 0:01:33.3]} 43.
Qd2 {[%clk 0:00:04.2]} 43... Qxh3 {[%clk 0:01:32.4]} 0-1

[Event "Late-Titled-Tuesday-Blitz-March-26-2024"]
[Site "Chess.com"]
[Date "2024.03.26"]
[Round "2"]
[White "whiteglovethief"]
[Black "chessamical"]
[Result "1-0"]
[WhiteElo "2493"]
[BlackElo "2259"]
[TimeControl "180+1"]
[EndTime "14:17:59 PDT"]
[Termination "whiteglovethief won on time"]

1. d4 {[%clk 0:02:52.4]} 1... Nf6 {[%clk 0:02:58.9]} 2. c4 {[%clk 0:02:37.9]}
2... e6 {[%clk 0:02:58]} 3. Nf3 {[%clk 0:02:36.6]} 3... d5 {[%clk 0:02:57.1]} 4.
g3 {[%clk 0:02:31]} 4... Bb4+ {[%clk 0:02:53.8]} 5. Nbd2 {[%clk 0:02:29.9]} 5...
O-O {[%clk 0:02:49.1]} 6. Bg2 {[%clk 0:02:30]} 6... dxc4 {[%clk 0:02:49.1]} 7.
O-O {[%clk 0:02:29.5]} 7... b5 {[%clk 0:02:42.1]} 8. a4 {[%clk 0:02:28.5]} 8...
c6 {[%clk 0:02:37.5]} 9. Qc2 {[%clk 0:02:27.9]} 9... Bb7 {[%clk 0:02:24.4]} 10.
b3 {[%clk 0:02:25.7]} 10... cxb3 {[%clk 0:02:16.7]} 11. Nxb3 {[%clk 0:02:26.3]}
11... Nbd7 {[%clk 0:02:05.9]} 12. Rd1 {[%clk 0:02:18]} 12... a5 {[%clk
0:01:44.7]} 13. Nc5 {[%clk 0:02:11.5]} 13... Nxc5 {[%clk 0:01:35.1]} 14. dxc5
{[%clk 0:02:12.4]} 14... Qe7 {[%clk 0:01:34.1]} 15. Be3 {[%clk 0:02:07]} 15...
Rfd8 {[%clk 0:01:07.6]} 16. Ne5 {[%clk 0:01:52.6]} 16... Nd5 {[%clk 0:00:44.3]}
17. axb5 {[%clk 0:01:32]} 17... Nxe3 {[%clk 0:00:26]} 18. fxe3 {[%clk
0:01:32.9]} 18... Qxc5 {[%clk 0:00:12.4]} 19. Qxc5 {[%clk 0:01:29.4]} 19... Bxc5
{[%clk 0:00:13.3]} 20. bxc6 {[%clk 0:01:28.5]} 20... Rxd1+ {[%clk 0:00:12.6]}
21. Rxd1 {[%clk 0:01:27.6]} 21... Ba6 {[%clk 0:00:10]} 22. c7 {[%clk 0:01:25]}
22... Rc8 {[%clk 0:00:10]} 23. Rd8+ {[%clk 0:01:23.8]} 23... Bf8 {[%clk
0:00:09.7]} 24. Nd7 {[%clk 0:01:23.4]} 24... g6 {[%clk 0:00:08.8]} 25. Nxf8
{[%clk 0:01:21.8]} 25... Kg7 {[%clk 0:00:08.7]} 26. Kf2 {[%clk 0:01:06]} 26...
Rxc7 {[%clk 0:00:08.2]} 27. Nd7 {[%clk 0:01:04.7]} 27... Rc2 {[%clk 0:00:07.3]}
28. Bf3 {[%clk 0:01:03.3]} 28... a4 {[%clk 0:00:05.8]} 29. Ra8 {[%clk 0:01:01]}
29... Bb5 {[%clk 0:00:05.7]} 30. Ne5 {[%clk 0:01:00.5]} 30... f6 {[%clk
0:00:04.8]} 31. Ra7+ {[%clk 0:00:59]} 31... Kg8 {[%clk 0:00:01.3]} 32. Ng4
{[%clk 0:00:57.4]} 1-0

[Event "Late-Titled-Tuesday-Blitz-March-26-2024"]
[Site "Chess.com"]
[Date "2024.03.26"]
[Round "2"]
[White "dretch"]
[Black "Russian_berezka"]
[Result "1-0"]
[WhiteElo "2867"]
[BlackElo "2583"]
[TimeControl "180+1"]
[EndTime "14:18:00 PDT"]
[Termination "dretch won by resignation"]

1. d4 {[%clk 0:02:58.6]} 1... g6 {[%clk 0:03:00.5]} 2. c4 {[%clk 0:02:57.9]}
2... Bg7 {[%clk 0:03:01]} 3. Nf3 {[%clk 0:02:58.5]} 3... c6 {[%clk 0:02:58]} 4.
e4 {[%clk 0:02:57.2]} 4... d5 {[%clk 0:02:56.5]} 5. e5 {[%clk 0:02:55.6]} 5...
h5 {[%clk 0:02:55.4]} 6. Nc3 {[%clk 0:02:53.5]} 6... Nh6 {[%clk 0:02:55.9]} 7.
cxd5 {[%clk 0:02:49.3]} 7... cxd5 {[%clk 0:02:56.8]} 8. Qb3 {[%clk 0:02:49.3]}
8... e6 {[%clk 0:02:55.1]} 9. Bg5 {[%clk 0:02:45.2]} 9... Qa5 {[%clk 0:02:47.8]}
10. Qb5+ {[%clk 0:02:20.4]} 10... Nc6 {[%clk 0:02:40.6]} 11. Qxa5 {[%clk
0:02:21.3]} 11... Nxa5 {[%clk 0:02:41.5]} 12. Nb5 {[%clk 0:02:21.7]} 12... O-O
{[%clk 0:02:38.3]} 13. Nc7 {[%clk 0:02:14.2]} 13... Rb8 {[%clk 0:02:38.2]} 14.
Be7 {[%clk 0:02:12.3]} 14... a6 {[%clk 0:02:30.7]} 15. b4 {[%clk 0:02:06.1]}
15... Nc4 {[%clk 0:02:17.9]} 16. Bxc4 {[%clk 0:02:04.1]} 16... dxc4 {[%clk
0:02:18.8]} 17. d5 {[%clk 0:02:04.2]} 17... exd5 {[%clk 0:02:17.8]} 18. Bxf8
{[%clk 0:02:03.6]} 18... Bxf8 {[%clk 0:02:18.7]} 19. Nxd5 {[%clk 0:02:03.5]}
19... Be6 {[%clk 0:02:18.9]} 20. Nf6+ {[%clk 0:01:58.9]} 20... Kg7 {[%clk
0:02:16.3]} 21. a3 {[%clk 0:01:59.1]} 21... Be7 {[%clk 0:01:53.9]} 22. Nd4
{[%clk 0:01:44.4]} 22... Bxf6 {[%clk 0:01:50.6]} 23. Nxe6+ {[%clk 0:01:43.6]}
23... fxe6 {[%clk 0:01:50.7]} 24. exf6+ {[%clk 0:01:43.8]} 24... Kxf6 {[%clk
0:01:51.6]} 25. O-O-O {[%clk 0:01:43.8]} 25... Nf5 {[%clk 0:01:47.9]} 26. Rd7
{[%clk 0:01:39]} 26... b5 {[%clk 0:01:45.6]} 27. Ra7 {[%clk 0:01:32.5]} 27...
Rb6 {[%clk 0:01:45.6]} 28. Rd1 {[%clk 0:01:32.3]} 28... Ne7 {[%clk 0:01:35]} 29.
Rd8 {[%clk 0:01:20]} 29... Nc6 {[%clk 0:01:34.6]} 30. Rd6 {[%clk 0:01:12.9]}
30... Ke5 {[%clk 0:01:24.3]} 31. Rad7 {[%clk 0:01:12.4]} 31... h4 {[%clk
0:01:09.9]} 32. Kd2 {[%clk 0:01:07.4]} 32... g5 {[%clk 0:01:10]} 33. h3 {[%clk
0:01:04.2]} 33... a5 {[%clk 0:01:09]} 34. bxa5 {[%clk 0:01:03.6]} 34... Ra6
{[%clk 0:01:09.1]} 35. Kc3 {[%clk 0:00:56.7]} 35... Rxa5 {[%clk 0:00:50.6]} 36.
Rxc6 {[%clk 0:00:56.7]} 36... Rxa3+ {[%clk 0:00:50.8]} 37. Kb2 {[%clk
0:00:57.1]} 37... Rb3+ {[%clk 0:00:47]} 38. Kc2 {[%clk 0:00:57.5]} 38... Ra3
{[%clk 0:00:47.7]} 39. Rc5+ {[%clk 0:00:57.2]} 39... Kf6 {[%clk 0:00:47.8]} 40.
Rxb5 {[%clk 0:00:54.3]} 40... c3 {[%clk 0:00:48.2]} 41. Rbb7 {[%clk 0:00:51.7]}
41... Ke5 {[%clk 0:00:44.5]} 42. Ra7 {[%clk 0:00:51.3]} 42... Ra6 {[%clk
0:00:36.1]} 43. Rxa6 {[%clk 0:00:49.3]} 1-0

[Event "Late-Titled-Tuesday-Blitz-March-26-2024"]
[Site "Chess.com"]
[Date "2024.03.26"]
[Round "2"]
[White "carloseduar100"]
[Black "karinachess1"]
[Result "1-0"]
[WhiteElo "2248"]
[BlackElo "2576"]
[TimeControl "180+1"]
[EndTime "14:18:02 PDT"]
[Termination "carloseduar100 won by resignation"]

1. d4 {[%clk 0:03:00.3]} 1... Nf6 {[%clk 0:02:59.5]} 2. Bg5 {[%clk 0:02:59.9]}
2... Ne4 {[%clk 0:02:56.4]} 3. h4 {[%clk 0:02:59.4]} 3... d5 {[%clk 0:02:55.3]}
4. Nd2 {[%clk 0:02:59.3]} 4... c5 {[%clk 0:02:54.7]} 5. Nxe4 {[%clk 0:02:58.4]}
5... dxe4 {[%clk 0:02:55.6]} 6. d5 {[%clk 0:02:58.8]} 6... h6 {[%clk 0:02:54.6]}
7. Bf4 {[%clk 0:02:58.8]} 7... e6 {[%clk 0:02:53]} 8. dxe6 {[%clk 0:02:58.4]}
8... Qxd1+ {[%clk 0:02:52.2]} 9. Rxd1 {[%clk 0:02:59.3]} 9... Bxe6 {[%clk
0:02:52.4]} 10. Bxb8 {[%clk 0:02:51.2]} 10... Rxb8 {[%clk 0:02:52.1]} 11. e3
{[%clk 0:02:52.1]} 11... a6 {[%clk 0:02:35.8]} 12. b3 {[%clk 0:02:52.2]} 12...
Be7 {[%clk 0:02:33.8]} 13. Ne2 {[%clk 0:02:50.4]} 13... O-O {[%clk 0:02:29.7]}
14. Nf4 {[%clk 0:02:50.4]} 14... Bg4 {[%clk 0:02:19.6]} 15. Be2 {[%clk
0:02:50.3]} 15... Bxe2 {[%clk 0:02:15]} 16. Kxe2 {[%clk 0:02:51.2]} 16... Rfd8
{[%clk 0:02:08.4]} 17. g3 {[%clk 0:02:51.1]} 17... b5 {[%clk 0:02:01.3]} 18.
Rxd8+ {[%clk 0:02:48.6]} 18... Rxd8 {[%clk 0:02:02.2]} 19. Rd1 {[%clk 0:02:49]}
19... Rxd1 {[%clk 0:02:02]} 20. Kxd1 {[%clk 0:02:49.9]} 20... f5 {[%clk
0:02:00.3]} 21. Nd5 {[%clk 0:02:48.2]} 21... Bd8 {[%clk 0:02:00.5]} 22. c4
{[%clk 0:02:47.1]} 22... bxc4 {[%clk 0:01:53.5]} 23. bxc4 {[%clk 0:02:48]} 23...
Kf7 {[%clk 0:01:54]} 24. Kc2 {[%clk 0:02:47.9]} 24... Ke6 {[%clk 0:01:53.6]} 25.
Kb3 {[%clk 0:02:47.3]} 25... Ba5 {[%clk 0:01:50.4]} 26. Kc2 {[%clk 0:02:30]}
26... Be1 {[%clk 0:01:45.1]} 27. Nf4+ {[%clk 0:02:30.3]} 27... Kf6 {[%clk
0:01:45.4]} 28. Nh3 {[%clk 0:02:30.7]} 28... g5 {[%clk 0:01:45.4]} 29. hxg5+
{[%clk 0:02:30.6]} 29... hxg5 {[%clk 0:01:46.3]} 30. Kd1 {[%clk 0:02:31.1]}
30... g4 {[%clk 0:01:36.7]} 31. Nf4 {[%clk 0:01:47.6]} 31... Bxf2 {[%clk
0:01:34.7]} 32. Ke2 {[%clk 0:01:48.1]} 32... Bg1 {[%clk 0:01:30.9]} 33. Nd5+
{[%clk 0:01:48.3]} 33... Ke5 {[%clk 0:01:24.4]} 34. Nc7 {[%clk 0:01:48.4]} 34...
a5 {[%clk 0:01:05.9]} 35. a4 {[%clk 0:01:48]} 35... Kd6 {[%clk 0:00:51]} 36. Nd5
{[%clk 0:01:47.6]} 36... Ke5 {[%clk 0:00:43.5]} 37. Ne7 {[%clk 0:01:47.7]} 37...
Bh2 {[%clk 0:00:34.3]} 38. Kf2 {[%clk 0:01:47.9]} 38... f4 {[%clk 0:00:30.3]}
39. gxf4+ {[%clk 0:01:48]} 39... Bxf4 {[%clk 0:00:29.1]} 40. Ng6+ {[%clk
0:01:37.8]} 40... Kf5 {[%clk 0:00:27.3]} 41. Nxf4 {[%clk 0:01:37.9]} 41... Kg5
{[%clk 0:00:27.4]} 42. Kg3 {[%clk 0:01:38.2]} 42... Kf5 {[%clk 0:00:27.6]} 43.
Nd5 {[%clk 0:01:37.5]} 43... Kg5 {[%clk 0:00:26.5]} 44. Ne7 {[%clk 0:01:37.1]}
44... Kf6 {[%clk 0:00:26]} 45. Nc6 {[%clk 0:01:37.7]} 45... Ke6 {[%clk 0:00:26]}
46. Nxa5 {[%clk 0:01:38.3]} 46... Kd7 {[%clk 0:00:26.9]} 47. Nb7 {[%clk
0:01:38.5]} 47... Kc6 {[%clk 0:00:27.8]} 48. Nxc5 {[%clk 0:01:37.2]} 48... Kxc5
{[%clk 0:00:28.2]} 49. a5 {[%clk 0:01:37.2]} 49... Kc6 {[%clk 0:00:16.8]} 50.
Kxg4 {[%clk 0:01:36]} 50... Kb7 {[%clk 0:00:17.7]} 51. c5 {[%clk 0:01:36.1]}
51... Ka6 {[%clk 0:00:18.6]} 52. c6 {[%clk 0:01:36.4]} 1-0